fUSD/lending_fUSD_20240819
["ID","MTS","AMOUNT","RATE_DAILY","PERIOD"]
[335301869,1724089840508,-1543.0,0.00010934,2]
[335301870,1724089840522,-622.0,0.00010934,2]
[335301871,1724089840531,-1385.979,0.00010934,2]
[335301872,1724089840540,-446.978,0.00010934,2]
[335301873,1724089840550,-150.0,0.00010934,2]
[335301874,1724089840559,-872.092,0.00010934,2]
[335301875,1724089840568,-446.86470693,0.00010934,2]
[335301876,1724089840579,-109.13529307,0.00010934,2]
[335301877,1724089840588,-199.80832114,0.00010934,2]
[335301878,1724089840599,-72.47667886,0.00010934,2]
[335301879,1724089840609,-541.95284432,0.00010934,2]
[335301880,1724089840620,-10.36915568,0.00010934,2]
[335301881,1724089840630,-1169.40084432,0.00010934,2]
[335301882,1724089840648,-861.06215568,0.00010934,2]
[335301883,1724089840658,-207.346,0.00010934,2]
[335301884,1724089840667,-3318.0,0.00010934,2]
[335301885,1724089840677,-1085.0,0.00010934,2]
[335301886,1724089840686,-254.604,0.00010934,2]
[335301887,1724089840696,-642.636,0.00010934,2]
[335301888,1724089840706,-1289.016,0.00010934,2]
[335301890,1724089840715,-908.945,0.00010934,2]
[335301892,1724089840724,-3726.0,0.00010934,2]
[335301894,1724089840734,-5844.0,0.00010934,2]
[335301895,1724089840745,-21769.0,0.00010934,2]
[335301896,1724089840763,-289.0,0.00010934,2]
[335301897,1724089840773,-1205.44132,0.0001094,2]
[335301898,1724089840783,-250.0,0.00010959,2]
[335301899,1724089840792,-422.35,0.00010959,2]
[335301900,1724089840801,-155.34600795,0.00010973,2]
[335301901,1724089840810,-200.0,0.00010973,2]
[335301902,1724089840819,-200.0,0.00010973,2]
[335301904,1724089840828,-197.44772673,0.0001099,2]
[335301905,1724089840838,-150.82,0.0001099,2]
[335301907,1724089840848,-24309.28015424,0.0001099,3]
[335301908,1724089840857,-150.82,0.0001099,2]
[335301909,1724089840867,-150.82,0.0001099,2]
[335301910,1724089840876,-150.82,0.0001099,2]
[335301911,1724089840887,-578.03,0.00010993,2]
[335301912,1724089840897,-3645.73148868,0.00010997,2]
[335301913,1724089840907,-500.0,0.00010999,2]
[335301914,1724089840916,-632.64357433,0.00010999,2]
[335301915,1724089840926,-500.0,0.00010999,2]
[335301916,1724089840935,-500.0,0.00010999,2]
[335301917,1724089840945,-500.0,0.00010999,2]
[335301918,1724089840953,-500.0,0.00010999,2]
[335301919,1724089840963,-751.49965305,0.00010999,3]
[335301920,1724089840972,-150.30944536,0.00010999,2]
[335301921,1724089840981,-1853.75639391,0.00010999,2]
[335301922,1724089840990,-500.0,0.00010999,2]
[335301923,1724089841013,-210.71,0.00010999,2]
[335301924,1724089841022,-315.57,0.00010999,2]
[335301925,1724089841031,-206.98,0.00010999,2]
[335301926,1724089841040,-500.0,0.00010999,2]
[335301927,1724089841049,-500.0,0.00010999,2]
[335301928,1724089841058,-324.02374733,0.00010999,2]
[335301929,1724089841067,-500.0,0.00010999,2]
[335301930,1724089841076,-199.37516459,0.00010999,2]
[335301931,1724089841085,-1677.5,0.00010999,2]
[335301932,1724089841095,-500.0,0.00010999,2]
[335301933,1724089841106,-500.0,0.00010999,2]
[335301934,1724089841116,-500.0,0.00010999,2]
[335301935,1724089841125,-500.0,0.00010999,2]
[335301936,1724089841134,-500.0,0.00010999,2]
[335301937,1724089841143,-407.45,0.00010999,2]
[335301938,1724089841154,-500.0,0.00010999,2]
[335301939,1724089841163,-500.0,0.00010999,2]
[335301940,1724089841173,-500.0,0.00010999,2]
[335301941,1724089841185,-500.0,0.00010999,2]
[335301942,1724089841195,-459.6,0.00010999,2]
[335301943,1724089841205,-500.0,0.00010999,2]
[335301944,1724089841215,-500.0,0.00010999,2]
[335301945,1724089841224,-500.0,0.00010999,2]
[335301946,1724089841233,-500.0,0.00010999,2]
[335301947,1724089841244,-500.0,0.00010999,2]
[335301948,1724089841266,-500.0,0.00010999,2]
[335301949,1724089841277,-500.0,0.00010999,2]
[335301950,1724089841287,-500.0,0.00010999,2]
[335301951,1724089841296,-500.0,0.00010999,2]
[335301952,1724089841306,-189.09,0.00010999,2]
[335301953,1724089841315,-400.5512352,0.00010999,2]
[335301954,1724089841325,-512.63646757,0.00010999,2]
[335301955,1724089841334,-529.7187017,0.00010999,2]
[335301956,1724089841343,-513.84873261,0.00010999,2]
[335301957,1724089841352,-500.0,0.00010999,2]
[335301958,1724089841361,-500.0,0.00010999,2]
[335301959,1724089841370,-500.0,0.00010999,2]
[335301960,1724089841380,-500.0,0.00010999,2]
[335301961,1724089841388,-500.0,0.00010999,2]
[335301962,1724089841397,-500.0,0.00010999,2]
[335301963,1724089841406,-500.0,0.00010999,2]
[335301964,1724089841415,-500.0,0.00010999,2]
[335301965,1724089841424,-500.0,0.00010999,2]
[335301966,1724089841433,-500.0,0.00010999,2]
[335301967,1724089841443,-391.4257,0.00010999,2]
[335301968,1724089841453,-500.0,0.00010999,2]
[335301969,1724089841463,-500.0,0.00010999,2]
[335301970,1724089841471,-500.0,0.00010999,2]
[335301971,1724089841481,-212.97955071,0.00010999,2]
[335301972,1724089841489,-500.0,0.00010999,2]
[335301973,1724089841512,-500.0,0.00010999,2]
[335301974,1724089841521,-312.75,0.00010999,2]
[335301975,1724089841530,-309.47911508,0.00010999,2]
[335301976,1724089841539,-500.0,0.00010999,2]
[335301977,1724089841548,-1183408.73337391,0.00011,2]
[335301978,1724089841557,-1545246.87019361,0.00011,2]
[335301979,1724089841566,-1792888.50712586,0.00011,2]
[335301980,1724089841575,-115396.66774555,0.00011,2]
[335301981,1724089841586,-2958.0,0.00011,2]
[335301982,1724089841597,-470.89476816,0.00011,2]
[335301983,1724089841607,-485.3980518,0.00011,2]
[335301984,1724089841618,-547.48144013,0.00011,2]
[335301985,1724089841629,-508.80358176,0.00011,2]
[335301986,1724089841639,-1081.6615737,0.00011,2]
[335301987,1724089841649,-975.50742252,0.00011,2]
[335301988,1724089841660,-807.664508,0.00011,2]
[335302006,1724089843214,-5759.89368103,0.00011,2]
[335302014,1724089843972,-5980.48427293,0.00011,2]
[335302015,1724089843994,-40202.10488403,0.00011,2]
[335302038,1724089846298,-1487.55875,0.00011,2]
[335302040,1724089846310,-1309.89999999,0.00011,2]
[335302041,1724089846393,-908.94469596,0.00011,2]
[335302051,1724090249016,284.44,8.219e-05,2]
[335302056,1724090505871,1269.59062795,8.219e-05,2]
[335302061,1724090542915,3328.54541152,8.219e-05,2]
[335302062,1724090542939,10000.0,8.219e-05,2]
[335302063,1724090542961,4801.98875348,8.219e-05,2]
[335302064,1724090558568,155.28602877,8.219e-05,2]
[335302065,1724090561170,155.0,8.219e-05,2]
[335302066,1724090582873,1269.59062795,8.219e-05,2]
[335302067,1724090585397,174.16188238,8.219e-05,2]
[335302068,1724090608340,155.11102333,8.219e-05,2]
[335302069,1724090619826,287.37420846,8.219e-05,2]
[335302070,1724090635512,412.14592953,8.219e-05,2]
[335302071,1724090651924,2589.3415461,8.219e-05,2]
[335302072,1724090651944,1075.07535104,8.219e-05,2]
[335302073,1724090660274,3078.13857665,8.219e-05,2]
[335302074,1724090669487,291.80613083,8.219e-05,2]
[335302075,1724090679013,5554.97994148,8.219e-05,2]
[335302076,1724090679034,10000.0,8.219e-05,2]
[335302077,1724090679055,689.72509983,8.219e-05,2]
[335302078,1724090702893,1268.29669159,8.219e-05,2]
[335302079,1724090703975,539.058819,9.879e-05,2]
[335302080,1724090723505,412.21466658,8.219e-05,2]
[335302081,1724090729836,159.09255227,8.219e-05,2]
[335302082,1724090733864,155.0,8.219e-05,2]
[335302083,1724090759863,159.09255227,8.219e-05,2]
[335302085,1724090773080,190.26,9.899e-05,2]
[335302086,1724090775409,693.69786065,9.879e-05,2]
[335302087,1724090775497,291.80613083,9.879e-05,2]
[335302088,1724090776098,500.0,9.168e-05,2]
[335302089,1724090778688,200.0,9.899e-05,2]
[335302090,1724090789743,2387.09421634,9.899e-05,2]
[335302091,1724090795460,1311.21932228,8.219e-05,2]
[335302092,1724090806889,1043.44208836,8.219e-05,2]
[335302093,1724090806915,216.56670242,8.219e-05,2]
[335302094,1724090818041,2018.8177,9.808e-05,2]
[335302095,1724090821116,434.60721071,8.219e-05,2]
[335302096,1724090859975,401.52,8.219e-05,2]
[335302097,1724090864419,693.69786065,8.219e-05,2]
[335302098,1724090865515,291.80613083,8.219e-05,2]
[335302099,1724090866889,250.0,9.878e-05,2]
[335302100,1724090869216,1000.0,9.889e-05,2]
[335302101,1724090886946,1311.21932228,8.219e-05,2]
[335302104,1724090909111,500.0,8.219e-05,2]
[335302105,1724090909439,500.0,8.219e-05,2]
[335302106,1724090909765,500.0,8.219e-05,2]
[335302107,1724090910105,500.0,8.219e-05,2]
[335302108,1724090910651,500.0,8.219e-05,2]
[335302109,1724090911024,500.0,8.219e-05,2]
[335302110,1724090911356,381.76507311,8.219e-05,2]
[335302111,1724090911376,118.23492689,8.219e-05,2]
[335302112,1724090911674,500.0,8.219e-05,2]
[335302113,1724090912008,500.0,8.219e-05,2]
[335302114,1724090912321,500.0,8.219e-05,2]
[335302115,1724090912641,500.0,8.219e-05,2]
[335302116,1724090913345,961.92,9.849e-05,2]
[335302117,1724090913382,500.0,8.219e-05,2]
[335302118,1724090913742,500.0,8.219e-05,2]
[335302119,1724090914066,500.0,8.219e-05,2]
[335302120,1724090914397,500.0,8.219e-05,2]
[335302121,1724090914706,500.0,8.219e-05,2]
[335302122,1724090915037,500.0,8.219e-05,2]
[335302123,1724090915466,500.0,8.219e-05,2]
[335302124,1724090916370,500.0,8.219e-05,2]
[335302125,1724090916703,500.0,8.219e-05,2]
[335302126,1724090917060,500.0,8.219e-05,2]
[335302127,1724090918001,500.0,8.219e-05,2]
[335302128,1724090918334,500.0,8.219e-05,2]
[335302129,1724090918661,500.0,8.219e-05,2]
[335302130,1724090918968,419.84507311,8.219e-05,2]
[335302131,1724090918988,80.15492689,8.219e-05,2]
[335302132,1724090919309,500.0,8.219e-05,2]
[335302133,1724090919622,500.0,8.219e-05,2]
[335302134,1724090919968,500.0,8.219e-05,2]
[335302135,1724090920286,500.0,8.219e-05,2]
[335302136,1724090920623,500.0,8.219e-05,2]
[335302137,1724090920945,500.0,8.219e-05,2]
[335302138,1724090921252,500.0,8.219e-05,2]
[335302139,1724090921570,500.0,8.219e-05,2]
[335302140,1724090921902,500.0,8.219e-05,2]
[335302141,1724090922782,500.0,8.219e-05,2]
[335302142,1724090923125,512.0,8.219e-05,2]
[335302144,1724090942261,1587.25,9.86e-05,2]
[335302145,1724090946952,1311.21932228,9.889e-05,2]
[335302146,1724090948656,335.87,9.876e-05,2]
[335302148,1724090965182,411.007609,9.871e-05,2]
[335302149,1724090971509,291.80613083,8.219e-05,2]
[335302150,1724090972079,470.692011,9.168e-05,2]
[335302151,1724090972101,29.307989,9.168e-05,2]
[335302153,1724090984065,188.31,7.892e-05,2]
[335302154,1724091001552,500.0,9.168e-05,2]
[335302155,1724091004985,500.0,9.168e-05,2]
[335302156,1724091010988,264.54478532,8.219e-05,2]
[335302157,1724091012799,3053.1830351,8.219e-05,2]
[335302158,1724091013456,1358.55,9.872e-05,2]
[335302159,1724091017908,804.39663482,7.892e-05,2]
[335302160,1724091022956,155.41,8.219e-05,2]
[335302161,1724091026866,3146.29755576,9.821e-05,2]
[335302162,1724091026888,9258.98064424,9.821e-05,2]
[335302163,1724091027183,741.01935576,9.81e-05,2]
[335302164,1724091027204,5282.34335642,9.81e-05,2]
[335302174,1724091032347,-340.91219285,9.91e-05,2]
[335302175,1724091032356,-286.94079311,9.91e-05,2]
[335302176,1724091032368,-151.82949499,9.91e-05,2]
[335302177,1724091032377,-793.37530223,9.921e-05,2]
[335302178,1724091032388,-706.11031433,9.921e-05,2]
[335302179,1724091032463,-277.9595,9.921e-05,2]
[335302180,1724091032475,-7561.68488344,9.921e-05,2]
[335302181,1724091032485,-300.0,9.928e-05,2]
[335302182,1724091032494,-522.16077607,9.929e-05,2]
[335302183,1724091032503,-252.76,9.959e-05,2]
[335302184,1724091032513,-1308.18465589,9.962e-05,2]
[335302185,1724091032523,-229.49630119,9.962e-05,2]
[335302186,1724091032536,-523.33556264,9.962e-05,2]
[335302187,1724091032545,-917.10329199,9.962e-05,2]
[335302218,1724091038308,-839.8961087,9.962e-05,2]
[335302219,1724091038318,-211.85239586,9.962e-05,2]
[335302220,1724091038331,-1099.36692642,9.962e-05,2]
[335302221,1724091038340,-159.14561955,9.962e-05,2]
[335302222,1724091038350,-291.80613083,9.962e-05,2]
[335302224,1724091038361,-238.07169786,9.97e-05,2]
[335302226,1724091038374,-278.77830214,9.97e-05,2]
[335302228,1724091038383,-9047.86418791,0.00010007,2]
[335302301,1724091039330,-309.55914346,0.00010007,2]
[335302304,1724091039350,-5533.35431226,0.00010007,2]
[335302306,1724091039361,-9009.22235637,0.00010007,2]
[335302308,1724091039371,-150.0,0.00010263,2]
[335302310,1724091039380,-500.0,0.00010264,2]
[335302311,1724091039389,-500.0,0.00010264,2]
[335302313,1724091039399,-401.52,0.0001047,2]
[335302315,1724091039411,-155.0,0.00010471,2]
[335302317,1724091039420,-155.0,0.00010471,2]
[335302319,1724091039429,-1008.65264363,0.000105,2]
[335302321,1724091039441,-53.88735637,0.000105,2]
[335302323,1724091039451,-210.35264363,0.000105,2]
[335302325,1724091039463,-642.88735637,0.000105,2]
[335302327,1724091039472,-300.0,0.000105,2]
[335302329,1724091039482,-94.74227304,0.000105,2]
[335302332,1724091039499,-205.25772696,0.000105,2]
[335302334,1724091039509,-300.0,0.000105,2]
[335302336,1724091039519,-150.0,0.000105,2]
[335302338,1724091039528,-242.52630551,0.00010566,2]
[335302339,1724091039541,-500.47002876,0.00010656,2]
[335302341,1724091039551,-213.4978,0.000107,2]
[335302343,1724091039560,-145.65886508,0.000108,2]
[335302417,1724091040532,-365.41877247,0.000108,2]
[335302419,1724091040542,-222252.6,0.000108,2]
[335302421,1724091040552,-3726.0,0.00010834,2]
[335302423,1724091040561,-19556.106,0.00010834,2]
[335302425,1724091040571,-289.0,0.00010834,2]
[335302427,1724091040579,-1673.0,0.00010834,2]
[335302428,1724091040588,-1205.0,0.00010834,2]
[335302430,1724091040597,-5844.0,0.00010834,2]
[335302432,1724091040607,-293.0356,0.00010834,2]
[335302434,1724091040616,-526.89163581,0.00010861,2]
[335302435,1724091040625,-172.77042105,0.0001089,2]
[335302437,1724091040634,-5005.939,0.000109,2]
[335302439,1724091040643,-500.0,0.000109,2]
[335302441,1724091040653,-90126.3101,0.000109,2]
[335302443,1724091040662,-522.3322,0.000109,2]
[335302445,1724091040671,-4112.5891,0.000109,2]
[335302447,1724091040679,-150.0,0.000109,2]
[335302449,1724091040689,-1049.99887276,0.000109,2]
[335302451,1724091040697,-534.50786604,0.000109,2]
[335302453,1724091040707,-420.0,0.00010921,2]
[335302455,1724091040717,-2013.737,0.00010934,2]
[335302457,1724091040726,-1257.0,0.00010934,2]
[335302459,1724091040737,-1543.0,0.00010934,2]
[335302461,1724091040747,-622.0,0.00010934,2]
[335302463,1724091040759,-446.0,0.00010934,2]
[335302465,1724091040768,-556.0,0.00010934,2]
[335302466,1724091040779,-864.818,0.00010934,2]
[335302468,1724091040788,-150.0,0.00010934,2]
[335302471,1724091040798,-150.0,0.00010934,2]
[335302473,1724091040811,-551.0,0.00010934,2]
[335302475,1724091040822,-1896.0,0.00010934,2]
[335302477,1724091040832,-1185.0,0.00010934,2]
[335302479,1724091040842,-3318.0,0.00010934,2]
[335302481,1724091040852,-247.0,0.00010934,2]
[335302483,1724091040861,-500.0,0.00010958,2]
[335302485,1724091040870,-500.0,0.00010958,2]
[335302487,1724091040879,-182.73726796,0.00010958,2]
[335302489,1724091040887,-857.37,0.00010959,2]
[335302491,1724091040896,-250.0,0.00010959,2]
[335302492,1724091040905,-3042.79,0.00010959,2]
[335302494,1724091040916,-200.0,0.00010973,2]
[335302496,1724091040926,-200.0,0.00010973,2]
[335302498,1724091040935,-330.15183337,0.00010989,2]
[335302500,1724091040945,-431.24423708,0.00010994,2]
[335302502,1724091040954,-996.03,0.00010994,2]
[335302504,1724091040963,-500.0,0.00010994,2]
[335302506,1724091040972,-500.0,0.00010994,2]
[335302508,1724091040982,-197.6982301,0.00010997,2]
[335302510,1724091040991,-1390.31729544,0.00010999,2]
[335302512,1724091041000,-8176.04654027,0.00010999,2]
[335302514,1724091041009,-500.0,0.00010999,2]
[335302516,1724091041020,-996.03,0.00010999,2]
[335302518,1724091041030,-996.03,0.00010999,2]
[335302520,1724091041038,-996.03,0.00010999,2]
[335302522,1724091041047,-996.03,0.00010999,2]
[335302524,1724091041056,-996.03,0.00010999,2]
[335302525,1724091041066,-996.03,0.00010999,2]
[335302527,1724091041075,-996.03,0.00010999,2]
[335302529,1724091041084,-996.03,0.00010999,2]
[335302531,1724091041093,-996.03,0.00010999,2]
[335302533,1724091041102,-996.03,0.00010999,2]
[335302535,1724091041111,-996.03,0.00010999,2]
[335302537,1724091041120,-996.03,0.00010999,2]
[335302539,1724091041130,-996.03,0.00010999,2]
[335302541,1724091041139,-996.03,0.00010999,2]
[335302543,1724091041149,-996.03,0.00010999,2]
[335302544,1724091041158,-996.03,0.00010999,2]
[335302546,1724091041169,-996.03,0.00010999,2]
[335302548,1724091041178,-996.03,0.00010999,2]
[335302550,1724091041187,-996.03,0.00010999,2]
[335302552,1724091041196,-996.03,0.00010999,2]
[335302554,1724091041205,-996.03,0.00010999,2]
[335302556,1724091041215,-996.03,0.00010999,2]
[335302558,1724091041223,-996.12090763,0.00010999,2]
[335302559,1724091041233,-500.0,0.00010999,2]
[335302561,1724091041242,-501.0,0.00010999,2]
[335302563,1724091041251,-667823.75453299,0.00011,2]
[335302565,1724091041260,-214174.76098793,0.00011,2]
[335302567,1724091041269,-260970.6456015,0.00011,2]
[335302569,1724091041279,-807784.39778812,0.00011,2]
[335302571,1724091041288,-601880.80220862,0.00011,2]
[335302575,1724091041323,-5690.0574,0.00011,2]
[335302578,1724091041335,-312.004999,0.00011,2]
[335302671,1724091042343,-93887.53637394,0.00011,2]
[335302761,1724091043289,4717.65664358,9.872e-05,2]
[335302766,1724091043311,10000.0,9.872e-05,2]
[335302772,1724091043334,9182.34335642,9.872e-05,2]
[335302777,1724091043381,-562.50821747,0.00011,2]
[335302779,1724091043392,-64495.69190021,0.00011,2]
[335302840,1724091044250,-6191.60214686,0.00011,2]
[335302841,1724091044262,-612.5168473,0.00011,2]
[335302843,1724091044274,-1232.8790104,0.00011,2]
[335302844,1724091044285,-1329.54172578,0.00011,2]
[335302846,1724091044295,-4491.72001492,0.00011,2]
[335302849,1724091044310,-3473.98301752,0.00011,2]
[335302851,1724091044325,-3292.21027619,0.00011,2]
[335302853,1724091044336,-285.075,0.00011,2]
[335303050,1724091046447,-1303.17693193,0.00011,2]
[335303052,1724091046459,-24571.09859518,0.00011,2]
[335303054,1724091046470,-2924.57046392,0.00011,2]
[335303058,1724091046495,-500.0,0.00011,2]
[335303060,1724091046507,-500.47878452,0.00011,2]
[335303062,1724091046518,-522.88362862,0.00011,2]
[335303064,1724091046529,-6362.28804746,0.00011,2]
[335303066,1724091046544,-746.22474826,0.00011,2]
[335303068,1724091046554,-520.42458624,0.00011,2]
[335303070,1724091046565,-1434.79165165,0.00011,2]
[335303072,1724091046576,-2266.79000006,0.00011,2]
[335303074,1724091046588,-818.55008395,0.00011,2]
[335303081,1724091046649,-1872.01313876,0.00011,2]
[335303083,1724091046660,-346.55190749,0.00011,2]
[335303085,1724091046672,-612.475,0.00011,2]
[335303087,1724091046683,-1688.41816682,0.00011,2]
[335303089,1724091046694,-2087.08,0.00011,2]
[335303091,1724091046705,-1982.65919699,0.00011,2]
[335303094,1724091046720,-266.39857557,0.00011,2]
[335303466,1724091065322,817.65664358,9.566e-05,2]
[335303467,1724091065342,1569.15827352,9.566e-05,2]
[335303468,1724091067592,760.3907085,9.566e-05,2]
[335303469,1724091071763,184.16,9.872e-05,2]
[335303470,1724091095481,552.1151,9.821e-05,2]
[335303471,1724091101186,500.0,9.168e-05,2]
[335303472,1724091130129,1311.21932228,9.168e-05,2]
[335303473,1724091134574,5122.9565957,9.168e-05,2]
[335303474,1724091134595,10000.0,9.168e-05,2]
[335303475,1724091134617,1121.74844561,9.168e-05,2]
[335303476,1724091136901,194.08966662,9.168e-05,2]
[335303477,1724091140777,500.0,9.168e-05,2]
[335303478,1724091149920,1270.18697247,9.168e-05,2]
[335303479,1724091164985,6913.9749153,9.168e-05,2]
[335303480,1724091165007,10000.0,9.168e-05,2]
[335303481,1724091165028,3485.69580057,9.168e-05,2]
[335303482,1724091165522,370.92689937,9.168e-05,2]
[335303483,1724091197944,500.0,9.168e-05,2]
[335303484,1724091212810,3075.03809494,9.168e-05,2]
[335303485,1724091237471,1334.05038074,9.168e-05,2]
[335303486,1724091240285,221.51,9.872e-05,2]
[335303487,1724091241017,155.0,9.168e-05,2]
[335303488,1724091241561,857.77882438,9.168e-05,2]
[335303489,1724091241584,10000.0,9.168e-05,2]
[335303490,1724091241608,5386.92621693,9.168e-05,2]
[335303491,1724091244771,500.0,9.168e-05,2]
[335303492,1724091253862,159.17209683,9.168e-05,2]
[335303493,1724091256482,3953.90168624,9.168e-05,2]
[335303494,1724091256502,3291.5756265,9.168e-05,2]
[335303495,1724091261035,275.90031149,9.168e-05,2]
[335303496,1724091302559,500.0,9.168e-05,2]
[335303497,1724091327932,1269.04856902,9.168e-05,2]
[335303498,1724091333492,693.33525753,9.168e-05,2]
[335303499,1724091357482,3970.14023546,9.168e-05,2]
[335303500,1724091357503,5675.75189204,9.168e-05,2]
[335303501,1724091359865,159.17209683,9.168e-05,2]
[335303502,1724091445815,1074.55875595,9.168e-05,2]
[335303503,1724091450870,159.98766107,9.168e-05,2]
[335303504,1724091463676,429.27,9.785e-05,2]
[335303505,1724091470489,2501.25959411,9.168e-05,2]
[335303506,1724091470510,8255.9889442,9.168e-05,2]
[335303507,1724091486666,498.7,9.785e-05,2]
[335303508,1724091488467,693.51795609,9.168e-05,2]
[335303509,1724091494477,517.12,8.219e-05,2]
[335303510,1724091514019,34.67309971,9.802e-05,2]
[335303511,1724091514041,10000.0,9.802e-05,2]
[335303512,1724091514069,10000.0,9.802e-05,2]
[335303513,1724091514090,3865.32690029,9.802e-05,2]
[335303514,1724091530567,6134.67309971,9.785e-05,2]
[335303515,1724091530588,10000.0,9.785e-05,2]
[335303516,1724091530610,110.0319416,9.785e-05,2]
[335303517,1724091533581,415.632,9.864e-05,2]
[335303518,1724091537675,500.0,8.219e-05,2]
[335303519,1724091537999,500.0,8.219e-05,2]
[335303520,1724091538075,155.23,8.219e-05,2]
[335303521,1724091538350,500.0,8.219e-05,2]
[335303522,1724091538688,500.0,8.219e-05,2]
[335303523,1724091538999,500.0,8.219e-05,2]
[335303524,1724091539351,500.0,8.219e-05,2]
[335303525,1724091539799,500.0,8.219e-05,2]
[335303526,1724091540114,500.0,8.219e-05,2]
[335303527,1724091540444,500.0,8.219e-05,2]
[335303528,1724091540782,822.0,8.219e-05,2]
[335303529,1724091560926,3997.1060584,9.785e-05,2]
[335303530,1724091560948,10000.0,9.785e-05,2]
[335303531,1724091560968,2247.59898291,9.785e-05,2]
[335303532,1724091568657,176.71,9.72e-05,2]
[335303533,1724091578482,172.21858589,5e-05,2]
[335303534,1724091581349,3073.03961073,8.219e-05,2]
[335303535,1724091592082,561.60120989,8.219e-05,2]
[335303536,1724091596037,307.97477197,8.219e-05,2]
[335303537,1724091598491,3460.85683861,8.219e-05,2]
[335303538,1724091598511,10000.0,8.219e-05,2]
[335303539,1724091598533,6945.68895124,8.219e-05,2]
[335303540,1724091613986,768.83,9.671e-05,2]
[335303541,1724091614064,2285.48104876,9.671e-05,2]
[335303542,1724091614085,5622.16895124,9.671e-05,2]
[335303543,1724091632965,1103.85048918,8.219e-05,2]
[335303544,1724091641084,164.07,9.785e-05,2]
[335303545,1724091651597,3109.91055958,8.219e-05,2]
[335303546,1724091651618,10000.0,8.219e-05,2]
[335303547,1724091651639,1941.0,8.219e-05,2]
[335303548,1724091651838,1193.79448173,8.219e-05,2]
[335303549,1724091666191,220.68506991,8.219e-05,2]
[335303550,1724091688077,1852.42,9.557e-05,2]
[335303551,1724091695287,9831.86,9.785e-05,2]
[335303552,1724091696495,20406.54578985,8.219e-05,2]
[335303553,1724091708965,192.39,9.56e-05,2]
[335303554,1724091741599,5149.19265191,8.219e-05,2]
[335303555,1724091747511,304.77980935,9.814e-05,2]
[335303556,1724091755485,693.69786065,8.219e-05,2]
[335303557,1724091767975,365.0,8.219e-05,2]
[335303558,1724091768000,904.48338785,8.219e-05,2]
[335303559,1724091778845,3073.03961073,8.219e-05,2]
[335303560,1724091783263,1925.52,9.528e-05,2]
[335303561,1724091796095,436.95,9.555e-05,2]
[335303562,1724091816508,9388.53730314,8.219e-05,2]
[335303563,1724091824980,949.54206571,9.899e-05,2]
[335303564,1724091844232,2315.02,9.548e-05,2]
[335303565,1724091849524,514.46,9.555e-05,2]
[335303566,1724091866070,200.0,9.512e-05,2]
[335303567,1724091874712,547.52651326,9.899e-05,2]
[335303568,1724091876494,693.57471487,8.219e-05,2]
[335303569,1724091884977,1995.16506776,8.219e-05,2]
[335303570,1724091906718,577.16,9.671e-05,2]
[335303571,1724091935917,1020.00472426,9.899e-05,2]
[335303572,1724091948202,1768.29,9.772e-05,2]
[335303573,1724091950448,250.0,9.772e-05,2]
[335303574,1724091963128,150.0,9.888e-05,2]
[335303575,1724092006958,164.26,7.814e-05,2]
[335303576,1724092033164,23900.0,9.772e-05,2]
[335303577,1724092075774,171.48,9.781e-05,2]
[335303579,1724092167499,500.0,9.759e-05,2]
[335303580,1724092173632,1323.49,9.837e-05,2]
[335303594,1724092190093,240.69,9.79e-05,2]
[335303604,1724092231565,-341.42630098,0.0001,2]
[335303605,1724092231578,-708.57369902,0.0001,2]
[335303606,1724092231587,-182.48604826,0.0001,2]
[335303607,1724092231597,-2959.11920231,0.0001,2]